bitfinex-derivatives/quotes_BTCF0:USTF0_20250508
["timestamp","ask_amount","ask_price","bid_price","bid_amount"]
[1746672532613,0.001,98846.0,98845.0,1.0218868]
[1746672533111,0.001,98846.0,98845.0,0.8538868]
[1746672534300,0.001,98846.0,98845.0,0.65156]
[1746672534706,0.001,98846.0,98845.0,0.8538868]
[1746672534903,0.001,98846.0,98845.0,0.6515468]
[1746672535099,0.169,98846.0,98845.0,0.4146668]
[1746672535303,0.169,98846.0,98845.0,0.6614468]
[1746672537204,0.001,98846.0,98845.0,0.6614468]
[1746672538514,0.001,98846.0,98845.0,0.8637868]
[1746672542314,0.169,98846.0,98845.0,0.8637868]
[1746672544118,0.001,98846.0,98845.0,0.8637868]
[1746672544825,0.001,98856.0,98855.0,0.2023064]
[1746672545118,0.001,98856.0,98855.0,0.21234]
[1746672545311,0.001,98856.0,98855.0,0.4146464]
[1746672545517,0.001,98856.0,98855.0,0.7375464]
[1746672546017,0.003,98856.0,98855.0,0.7375464]
[1746672546219,0.171,98856.0,98855.0,0.7375464]
[1746672550212,0.6909,98885.0,98859.0,0.40468]
[1746672550519,0.202253,98882.0,98877.0,0.2022613]
[1746672550706,0.166,98881.0,98878.0,0.3304]
[1746672550912,0.161,98884.0,98881.0,0.40468]
[1746672551211,0.2022491,98883.0,98882.0,0.3304]
[1746672551420,0.2022491,98883.0,98882.0,0.1758]
[1746672551421,0.5236491,98883.0,98882.0,0.1758]
[1746672552117,0.6916491,98883.0,98882.0,0.1758]
[1746672552517,0.6916491,98883.0,98882.0,0.05190104]
[1746672552817,0.2022614,98877.0,98876.0,0.05021805]
[1746672553115,0.2022941,98861.0,98860.0,0.08184]
[1746672553320,0.2022941,98861.0,98860.0,0.29418]
[1746672553522,0.2022941,98861.0,98860.0,0.49652]
[1746672553717,0.5285941,98861.0,98860.0,0.49652]
[1746672554114,0.6965941,98861.0,98860.0,0.41468]
[1746672554312,0.6965941,98861.0,98860.0,0.45692954]
[1746672554512,0.6965941,98861.0,98860.0,0.05224954]
[1746672555019,0.4943,98861.0,98850.0,0.08184]
[1746672555215,0.2023146,98851.0,98850.0,0.09184]
[1746672556019,0.2023146,98851.0,98850.0,0.09484]
[1746672556321,0.3703146,98851.0,98850.0,0.0580443]
[1746672557021,0.3703146,98851.0,98850.0,0.02521649]
[1746672557322,0.3703146,98851.0,98850.0,0.003]
[1746672557717,0.3703146,98851.0,98850.0,0.04666981]
[1746672557924,0.3703146,98851.0,98850.0,0.004]
[1746672558419,0.3703146,98851.0,98850.0,0.003]
[1746672558822,0.3703146,98851.0,98850.0,0.001]
[1746672559426,0.2023289,98844.0,98843.0,0.1564]
[1746672559621,0.2023289,98844.0,98843.0,0.36780729]
[1746672560217,0.3703289,98844.0,98843.0,0.36780729]
[1746672562124,0.3703289,98844.0,98843.0,0.37080729]
[1746672563219,0.168,98844.0,98843.0,0.77548729]
[1746672564517,0.168,98844.0,98843.0,0.77648729]
[1746672565127,0.168,98844.0,98843.0,0.77748729]
[1746672565325,0.3703289,98844.0,98843.0,0.77748729]
[1746672565820,0.3703289,98844.0,98843.0,0.77548729]
[1746672566021,0.3703289,98844.0,98843.0,0.77448729]
[1746672566222,0.3703289,98844.0,98843.0,0.77848729]
[1746672566728,0.3703289,98844.0,98843.0,0.77748729]
[1746672567928,0.3703289,98844.0,98843.0,0.77548729]
[1746672568127,0.3703289,98844.0,98843.0,0.77648729]
[1746672568327,0.3703289,98844.0,98843.0,0.73599729]
[1746672568729,0.3703289,98844.0,98843.0,0.73499729]
[1746672569032,0.3703289,98844.0,98843.0,0.73599729]
[1746672569519,0.3703289,98844.0,98843.0,0.73499729]
[1746672569723,0.3703289,98844.0,98843.0,0.73599729]
[1746672569917,0.168,98844.0,98843.0,0.73599729]
[1746672570123,0.3703289,98844.0,98843.0,0.73499729]
[1746672571623,0.3703289,98844.0,98843.0,0.73299729]
[1746672571825,0.3703289,98844.0,98843.0,0.73499729]
[1746672572024,0.3703289,98844.0,98843.0,0.73599729]
[1746672572323,0.3703289,98844.0,98843.0,0.73499729]
[1746672572519,0.3703289,98844.0,98843.0,0.81659729]
[1746672572730,0.3703289,98844.0,98843.0,0.81459729]
[1746672572931,0.3703289,98844.0,98843.0,0.81659729]
[1746672573627,0.3703289,98844.0,98843.0,0.73499729]
[1746672573823,0.3703289,98844.0,98843.0,0.004]
[1746672574022,0.2023494,98834.0,98833.0,0.01517]
[1746672574326,0.2023637,98827.0,98826.0,0.12071794]
[1746672575130,0.5256637,98827.0,98826.0,0.12071794]
[1746672575329,0.6936637,98827.0,98826.0,0.12071794]
[1746672575934,0.6936637,98827.0,98826.0,0.15693903]
[1746672576138,0.6936637,98827.0,98826.0,0.15893903]
[1746672576930,0.4913,98827.0,98826.0,0.16193903]
[1746672577132,0.5346637,98827.0,98826.0,0.31593903]
[1746672578135,0.5346637,98827.0,98826.0,0.32370953]
[1746672583836,0.3323,98827.0,98826.0,0.48070953]
[1746672584037,0.168,98827.0,98826.0,1.08775523]
[1746672584340,0.34066,98845.0,98844.0,0.6070089]
[1746672584541,0.34066,98845.0,98844.0,0.49628]
[1746672584735,0.34066,98845.0,98844.0,0.6986089]
[1746672584936,0.1649,98855.0,98851.0,0.0505781]
[1746672585142,0.1649,98855.0,98854.0,0.40468]
[1746672585440,0.1649,98855.0,98854.0,0.36419]
[1746672585840,0.3672064,98855.0,98854.0,0.36419]
[1746672586040,0.1649,98855.0,98854.0,0.36419]
[1746672586246,0.3329,98855.0,98854.0,0.3237]
[1746672586437,0.3349,98855.0,98854.0,0.4874]
[1746672587042,0.5352064,98855.0,98854.0,0.4884]
[1746672587241,0.5352064,98855.0,98854.0,0.44791]
[1746672587546,0.5352064,98855.0,98854.0,0.44891]
[1746672589546,0.5352064,98855.0,98854.0,0.44791]
[1746672590247,0.5352064,98855.0,98854.0,0.44891]
[1746672590640,0.5352064,98855.0,98854.0,0.44691]
[1746672590841,0.5352064,98855.0,98854.0,0.44791]
[1746672591644,0.3329,98855.0,98854.0,0.44791]
[1746672591840,0.3329,98855.0,98854.0,0.6502184]
[1746672592041,0.5352064,98855.0,98854.0,0.44791]
[1746672592241,0.5352064,98855.0,98854.0,0.44891]
[1746672596343,0.5352064,98855.0,98854.0,0.44691]
[1746672596550,0.5352064,98855.0,98854.0,0.44891]
[1746672596847,0.5352064,98855.0,98854.0,0.59811]
[1746672597250,0.5352064,98855.0,98854.0,0.55762]
[1746672597843,0.8960064,98855.0,98854.0,0.55762]
[1746672599041,0.8960064,98855.0,98854.0,0.55662]
[1746672599236,0.8960064,98855.0,98854.0,0.27341]
[1746672599442,0.5352064,98855.0,98854.0,0.1502]
[1746672599750,0.8960064,98855.0,98854.0,0.1502]
[1746672601250,0.3329,98855.0,98854.0,0.43341]
[1746672601449,0.168,98855.0,98854.0,0.6457184]
[1746672602252,0.0015,98860.0,98859.0,0.1618082]
[1746672602641,0.0015,98860.0,98859.0,0.4450182]
[1746672602847,0.0015,98860.0,98859.0,0.7660182]
[1746672603954,0.0015,98860.0,98859.0,0.7670182]
[1746672604452,0.0015,98860.0,98859.0,0.60521]
[1746672604653,0.0015,98860.0,98859.0,0.8075082]
[1746672604869,0.1608,98860.0,98859.0,0.8075082]
[1746672605255,0.1608,98860.0,98859.0,0.8065082]
[1746672605454,0.1608,98860.0,98859.0,0.8075082]
[1746672605954,0.1608,98860.0,98859.0,0.8065082]
[1746672606154,0.1608,98860.0,98859.0,0.8075082]
[1746672610059,0.0015,98860.0,98859.0,0.8075082]
[1746672610248,0.0015,98860.0,98859.0,0.7770282]
[1746672611349,0.0015,98860.0,98859.0,0.7365482]
[1746672613356,0.0015,98860.0,98859.0,0.91770019]
[1746672613563,0.0015,98860.0,98859.0,0.83770019]
[1746672614359,0.0015,98860.0,98859.0,0.92722019]
[1746672615257,0.0015,98860.0,98859.0,1.24754019]
[1746672616051,0.0015,98860.0,98859.0,1.41554019]
[1746672616252,0.0015,98860.0,98859.0,1.37506019]
[1746672619065,0.1591,98872.0,98871.0,0.2022736]
[1746672619260,0.1591,98872.0,98871.0,0.3339236]
[1746672619866,0.1591,98872.0,98871.0,0.6371236]
[1746672620965,0.1591,98872.0,98871.0,0.67321499]
[1746672621169,0.1611,98872.0,98871.0,0.67321499]
[1746672622369,0.0505715,98865.0,98861.0,0.09132]
[1746672622561,0.202292,98862.0,98861.0,0.09132]
[1746672622761,0.202292,98862.0,98861.0,0.12700437]
[1746672623161,0.370292,98862.0,98861.0,0.12700437]
[1746672623465,0.370292,98862.0,98861.0,0.08652437]
[1746672624267,0.731092,98862.0,98861.0,0.01]
[1746672624467,0.2023125,98852.0,98851.0,0.3608]
[1746672624670,0.2023125,98852.0,98851.0,0.48806011]
[1746672624864,0.2023125,98852.0,98851.0,0.72987011]
[1746672625166,0.3703125,98852.0,98851.0,0.72987011]
[1746672625373,0.3703125,98852.0,98851.0,0.68938011]
[1746672625374,0.168,98852.0,98851.0,0.68938011]
[1746672626072,0.168,98852.0,98851.0,0.60857011]
[1746672626073,0.3703125,98852.0,98851.0,0.60857011]
[1746672626273,0.3703125,98852.0,98851.0,0.12726011]
[1746672626479,0.2023207,98848.0,98847.0,0.01517]
[1746672626670,0.050582,98845.0,98834.0,0.10151779]
[1746672626969,0.2023309,98843.0,98834.0,0.00151779]
[1746672627167,0.2023473,98835.0,98834.0,0.00151779]
[1746672627378,0.2023678,98825.0,98824.0,0.16630017]
[1746672627562,0.2023678,98825.0,98824.0,0.01]
[1746672628172,0.6901678,98825.0,98824.0,0.01]
[1746672628366,0.0505925,98824.0,98814.0,0.11]
[1746672628568,0.2023883,98815.0,98814.0,0.11]
[1746672629177,0.3703883,98815.0,98814.0,0.11]
[1746672629376,0.6901883,98815.0,98814.0,0.01]
[1746672629573,0.2024026,98808.0,98804.0,0.01151822]
[1746672629777,0.2024026,98808.0,98807.0,0.14670654]
[1746672629969,0.2024026,98808.0,98807.0,0.11922063]
[1746672630165,0.3704026,98808.0,98807.0,0.11922063]
[1746672630371,0.6902026,98808.0,98807.0,0.00770253]
[1746672630571,0.2024087,98805.0,98804.0,0.00151822]
[1746672630769,0.2024087,98805.0,98804.0,0.10151822]
[1746672631271,0.2024169,98801.0,98800.0,0.3608]
[1746672631472,0.2024169,98801.0,98800.0,0.40684608]
[1746672631673,0.2024169,98801.0,98800.0,0.48765608]
[1746672631876,0.2024169,98801.0,98800.0,0.12685608]
[1746672632071,0.3624169,98801.0,98800.0,0.12685608]
[1746672632273,0.3624169,98801.0,98800.0,0.09634608]
[1746672632274,0.5304169,98801.0,98800.0,0.09634608]
[1746672632473,0.8912169,98801.0,98800.0,0.02715055]
[1746672633175,0.8912169,98801.0,98800.0,0.02161447]
[1746672633480,0.2024354,98792.0,98791.0,0.06873274]
[1746672633779,0.2024354,98792.0,98791.0,0.07873274]
[1746672634173,0.3704354,98792.0,98791.0,0.11388154]
[1746672634480,0.3704354,98792.0,98791.0,0.12163494]
[1746672634678,0.7312354,98792.0,98791.0,0.0639022]
[1746672635372,0.7312354,98792.0,98791.0,0.0333922]
[1746672635968,0.7312354,98792.0,98791.0,0.0287534]
[1746672636172,0.7312354,98792.0,98791.0,0.011]
[1746672636381,0.2024571,98782.0,98780.0,0.2459244]
[1746672636581,0.2024571,98782.0,98780.0,0.2642]
[1746672636582,0.1612,98781.0,98780.0,0.2642]
[1746672636883,0.1612,98781.0,98780.0,0.29986873]
[1746672637270,0.3292,98781.0,98780.0,0.29986873]
[1746672637482,0.3292,98781.0,98780.0,0.30686873]
[1746672637981,0.3292,98781.0,98780.0,0.31286873]
[1746672638579,0.168,98781.0,98780.0,0.60360231]
[1746672638775,0.168,98781.0,98780.0,0.86360231]
[1746672639082,0.1603,98799.0,98791.0,0.2024374]
[1746672639283,0.1603,98799.0,98791.0,0.3827374]
[1746672639986,0.1603,98799.0,98798.0,0.2024231]
[1746672640275,0.1603,98799.0,98798.0,0.09081]
[1746672640680,0.362721,98799.0,98798.0,0.09081]
[1746672641085,0.530721,98799.0,98798.0,0.09081]
[1746672642886,0.3283,98799.0,98798.0,0.09281]
[1746672643076,0.3283,98799.0,98798.0,0.41181]
[1746672643480,0.3283,98799.0,98798.0,0.6142331]
[1746672643980,0.168,98799.0,98798.0,0.6953131]
[1746672644182,0.155,98824.0,98798.0,1.074106]
[1746672644484,0.0015,98825.0,98824.0,0.2023698]
[1746672644781,0.0015,98825.0,98824.0,0.8043598]
[1746672644980,0.1481,98845.0,98844.0,0.2023289]
[1746672645176,0.3608,98854.0,98852.0,0.08081]
[1746672645377,0.2023105,98853.0,98852.0,0.04032]
[1746672645579,0.3557105,98853.0,98852.0,0.04032]
[1746672645778,0.5038105,98853.0,98852.0,0.04032]
[1746672646282,0.2023133,98852.0,98846.0,0.2021538]
[1746672646480,0.2023162,98851.0,98846.0,0.26094712]
[1746672646681,0.3585162,98851.0,98846.0,0.26094712]
[1746672646881,0.2023196,98849.0,98846.0,0.05879332]
[1746672647082,0.1562,98848.0,98845.0,0.2023265]
[1746672647680,0.001,98853.0,98852.0,0.2023125]
[1746672647879,0.001,98856.0,98855.0,0.2023064]
[1746672648074,0.001,98856.0,98855.0,0.5103064]
[1746672648386,0.001,98856.0,98855.0,0.5709824]
[1746672649986,0.002,98856.0,98855.0,0.5709824]
[1746672650483,0.004,98856.0,98855.0,0.5709824]
[1746672652490,0.004,98856.0,98855.0,0.38908]
[1746672652781,0.004,98856.0,98855.0,0.6925424]
[1746672653187,0.004,98856.0,98855.0,0.5245424]
[1746672654289,0.004,98856.0,98855.0,0.4434624]
[1746672654479,0.004,98856.0,98855.0,0.5245424]
[1746672657189,0.004,98856.0,98855.0,0.6925424]
[1746672658989,0.00151827,98876.0,98875.0,0.2022654]
[1746672659192,0.1569,98885.0,98882.0,0.2022511]
[1746672659581,0.1569,98885.0,98882.0,0.20209017]
[1746672660087,0.1569,98885.0,98884.0,0.202247]
[1746672660284,0.1569,98885.0,98884.0,0.391777]
[1746672661178,0.1569,98885.0,98880.0,0.0505633]
[1746672661179,0.1569,98885.0,98875.0,0.44184]
[1746672661384,0.2022521,98882.0,98876.0,0.1517]
[1746672661578,0.2997,98881.0,98876.0,0.1617]
[1746672661785,0.2997,98881.0,98880.0,0.2022552]
[1746672662089,0.1481,98881.0,98880.0,0.2122552]
[1746672663087,0.007,98885.0,98884.0,0.202247]
[1746672663283,0.007,98885.0,98884.0,0.532577]
[1746672664086,0.001,98886.0,98885.0,0.202245]
[1746672664290,0.001,98886.0,98885.0,0.330775]
[1746672664894,0.001,98886.0,98885.0,0.478275]
[1746672665288,0.009,98886.0,98885.0,0.595805]
[1746672665590,0.009,98886.0,98885.0,0.665805]
[1746672666188,0.009,98886.0,98885.0,0.497805]
[1746672668794,0.009,98886.0,98885.0,0.07]
[1746672669090,0.0505655,98877.0,98864.0,0.46231731]
[1746672669290,0.3608,98876.0,98867.0,0.0512444]
[1746672669490,0.2022655,98875.0,98867.0,0.1912444]
[1746672669695,0.6665,98876.0,98867.0,0.1912444]
[1746672669991,0.2022798,98868.0,98867.0,0.1912444]
[1746672670293,0.2022798,98868.0,98867.0,0.18032]
[1746672671084,0.6855798,98868.0,98867.0,0.18032]
[1746672671992,0.6865798,98868.0,98867.0,0.18032]
[1746672672199,0.6865798,98868.0,98867.0,0.13984]
[1746672672408,0.6865798,98868.0,98867.0,0.0808]
[1746672672609,0.4843,98868.0,98867.0,0.0808]
[1746672672810,0.4843,98868.0,98867.0,0.2930818]
[1746672673012,0.4843,98868.0,98867.0,0.2122818]
[1746672673201,0.3163,98868.0,98867.0,0.2930818]
[1746672673509,0.3163,98868.0,98867.0,0.0908]
[1746672673709,0.5185798,98868.0,98867.0,0.0908]
[1746672674205,0.6865798,98868.0,98867.0,0.0908]
[1746672674410,1.0473798,98868.0,98867.0,0.0908]
[1746672674611,1.0473798,98868.0,98864.0,0.00151731]
[1746672674612,0.2022859,98865.0,98864.0,0.00151731]
[1746672675200,0.2022961,98860.0,98859.0,0.04183731]
[1746672676201,0.6700961,98860.0,98859.0,0.04183731]
[1746672676712,0.4678,98860.0,98859.0,0.04183731]
[1746672676913,0.3184,98860.0,98859.0,0.35413551]
[1746672677103,0.1504,98860.0,98859.0,0.52213551]
[1746672677305,0.0505605,98887.0,98859.0,0.9913093]
[1746672677511,0.0505612,98885.0,98877.0,0.3608]
[1746672677709,0.0505612,98885.0,98878.0,0.0808]
[1746672677710,0.2022573,98879.0,98878.0,0.0808]
[1746672678010,0.2022573,98879.0,98878.0,0.0908]
[1746672678212,0.2022573,98879.0,98878.0,0.05033]
[1746672678412,0.1593,98880.0,98878.0,0.05033]
[1746672678600,0.1579,98879.0,98878.0,0.05033]
[1746672679709,0.3601573,98879.0,98878.0,0.05033]
[1746672679906,0.1629,98879.0,98878.0,0.05033]
[1746672680411,0.0505662,98876.0,98870.0,0.0808]
[1746672680616,0.2022683,98874.0,98870.0,0.0908]
[1746672680914,0.3027,98873.0,98870.0,0.236]
[1746672681109,0.2022722,98872.0,98870.0,0.1552]
[1746672681315,0.2022722,98872.0,98870.0,0.01]
[1746672681514,0.3027,98871.0,98870.0,0.01]
[1746672681816,0.5049736,98871.0,98870.0,0.01]
[1746672682016,0.3027,98871.0,98870.0,0.01]
[1746672682207,0.1556,98871.0,98870.0,0.3574757]
[1746672683408,0.3578736,98871.0,98870.0,0.3119]
[1746672683609,0.867544,98871.0,98843.0,0.3608]
[1746672683808,0.2023105,98853.0,98843.0,0.1479]
[1746672684009,0.3608,98853.0,98843.0,0.19747885]
[1746672684215,0.3608,98844.0,98843.0,0.15698885]
[1746672684603,0.3608,98844.0,98843.0,0.16446665]
[1746672684807,0.3608,98844.0,98843.0,0.36679755]
[1746672685014,0.3032,98846.0,98843.0,0.36679755]
[1746672685215,0.3537812,98846.0,98843.0,0.33246665]
[1746672685414,0.5055259,98846.0,98844.0,0.08828]
[1746672686324,0.2023268,98845.0,98844.0,0.04779]
[1746672686813,0.3079,98845.0,98844.0,0.04779]
[1746672687010,0.3079,98845.0,98844.0,0.5149189]
[1746672687011,0.1545,98845.0,98844.0,0.5149189]
[1746672687310,0.1545,98851.0,98844.0,0.48459]
[1746672687616,0.1545,98851.0,98844.0,0.63079]
[1746672687617,0.2023268,98845.0,98844.0,0.63079]
[1746672687811,0.2023268,98845.0,98844.0,0.63379]
[1746672688117,0.2023268,98845.0,98844.0,0.46579]
[1746672688618,0.1545,98851.0,98849.0,0.2023175]
[1746672688817,0.1545,98851.0,98844.0,0.46579]
[1746672688818,0.1545,98851.0,98850.0,0.3035]
[1746672689517,0.3568146,98851.0,98850.0,0.3035]
[1746672689717,0.5091146,98851.0,98850.0,0.3035]
[1746672689917,0.3068,98851.0,98850.0,0.3035]
[1746672690114,0.3068,98851.0,98850.0,0.3055]
[1746672691017,0.3068,98851.0,98850.0,0.3075]
[1746672691520,0.5091146,98851.0,98850.0,0.3075]
[1746672692521,0.1545,98851.0,98850.0,0.3075]
[1746672693213,0.3568146,98851.0,98850.0,0.3075]
[1746672693813,0.1545,98851.0,98850.0,0.3075]
[1746672694118,0.3608,98866.0,98850.0,0.9563]
[1746672694315,0.1439,98864.0,98854.0,0.0505769]
[1746672694514,0.1439,98864.0,98857.0,0.2023005]
[1746672695022,0.3461888,98864.0,98855.0,0.353406]
[1746672695224,0.1491,98863.0,98857.0,0.329822]
[1746672695415,0.1439,98864.0,98857.0,0.329822]
[1746672695615,0.1451,98862.0,98858.0,0.2022999]
[1746672695913,0.1451,98862.0,98861.0,0.2022941]
[1746672697119,0.1451,98862.0,98861.0,0.3702941]
[1746672697416,0.0505626,98883.0,98871.0,0.2022722]
[1746672697617,0.3608,98893.0,98872.0,0.3495716]
[1746672697618,0.1451,98875.0,98872.0,0.3495716]
[1746672697823,0.1451,98875.0,98872.0,0.5042716]
[1746672698222,0.1451,98875.0,98872.0,0.6317916]
[1746672698424,0.1451,98875.0,98872.0,0.7317916]
[1746672698623,0.202251,98883.0,98872.0,0.7317916]
[1746672698811,0.1443,98882.0,98881.0,0.2022532]
[1746672699223,0.1443,98882.0,98881.0,0.3297832]
[1746672699922,0.1473,98882.0,98881.0,0.3297832]
[1746672701225,0.1473,98882.0,98881.0,0.1617832]
[1746672701423,0.1473,98882.0,98881.0,0.3052832]
[1746672702415,0.1473,98882.0,98881.0,0.1435]
[1746672702616,0.1473,98882.0,98881.0,0.3457532]
[1746672702921,0.1473,98882.0,98881.0,0.1435]
[1746672703117,0.1473,98882.0,98881.0,0.3457532]
[1746672703319,0.1473,98882.0,98880.0,0.147]
[1746672703522,0.2022573,98879.0,98878.0,0.08828]
[1746672703817,0.3562534,98881.0,98878.0,0.2905386]
[1746672704025,0.3562534,98881.0,98879.0,0.3043]
[1746672704226,0.1548,98880.0,98879.0,0.3043]
[1746672704925,0.3012,98880.0,98879.0,0.3043]
[1746672705625,0.5034552,98880.0,98879.0,0.3043]
[1746672706017,0.5064552,98880.0,98879.0,0.3043]
[1746672706328,0.2022675,98874.0,98873.0,0.005]
[1746672706825,0.2022784,98869.0,98864.0,0.2022877]
[1746672707013,0.152,98868.0,98865.0,0.3072]
[1746672707222,0.152,98868.0,98865.0,0.4990058]
[1746672707421,0.1501,98867.0,98865.0,0.29672]
[1746672707621,0.3523822,98867.0,98865.0,0.29672]
[1746672707927,0.3542839,98866.0,98865.0,0.03]
[1746672708123,0.5222839,98866.0,98865.0,0.03]
[1746672709427,0.32,98866.0,98865.0,0.03]
[1746672709927,0.6723839,98866.0,98865.0,0.03]
[1746672710432,0.2022883,98864.0,98859.0,0.2022973]
[1746672710621,0.2022883,98864.0,98859.0,0.2122973]
[1746672710817,0.3014,98863.0,98859.0,0.3696973]
[1746672711028,0.3014,98863.0,98862.0,0.202292]
[1746672711227,0.1492,98863.0,98862.0,0.212292]
[1746672713419,0.0505605,98887.0,98876.0,0.2022615]
[1746672713728,0.202254,98881.0,98877.0,0.5078613]
[1746672714030,0.1489,98880.0,98877.0,0.5078613]
[1746672714627,0.3608,98878.0,98871.0,0.1573]
[1746672714930,0.2022666,98875.0,98867.0,0.0505704]
[1746672715131,0.2939,98874.0,98870.0,0.2022751]
[1746672715928,0.4961679,98874.0,98871.0,0.2022731]
[1746672716123,0.4961679,98874.0,98866.0,0.3056]
[1746672716124,0.4619,98874.0,98866.0,0.3056]
[1746672716431,0.3608,98869.0,98868.0,0.2022798]
[1746672716933,0.3608,98869.0,98866.0,0.2022822]
[1746672717135,0.3009,98868.0,98867.0,0.2022818]
[1746672717335,0.3009,98868.0,98867.0,0.2122818]
[1746672717929,0.5031798,98868.0,98867.0,0.01]
[1746672718125,0.4689,98868.0,98867.0,0.01]
[1746672718327,0.4689,98868.0,98866.0,0.2022829]
[1746672718925,0.4699,98868.0,98866.0,0.2022829]
[1746672720537,0.4699,98868.0,98861.0,0.1545]
[1746672720836,0.4699,98868.0,98861.0,0.1845]
[1746672721037,0.4689,98868.0,98866.0,0.2022825]
[1746672721232,0.4689,98868.0,98864.0,0.2022872]
[1746672721430,0.2022832,98867.0,98864.0,0.02]
[1746672721628,0.4689,98868.0,98865.0,0.202285]
[1746672721836,0.1458,98866.0,98865.0,0.202285]
[1746672722239,0.3138,98866.0,98863.0,0.2022886]
[1746672722428,0.1434,98865.0,98863.0,0.02]
[1746672722827,0.1437,98864.0,98863.0,0.02]
[1746672723627,0.2871,98864.0,98863.0,0.02]
[1746672723836,0.489388,98864.0,98863.0,0.02]
[1746672724035,0.2023105,98853.0,98852.0,0.005]
[1746672724337,0.2023256,98846.0,98842.0,0.00151757]
[1746672724641,0.3608,98843.0,98840.0,0.05275197]
[1746672724838,0.3608,98843.0,98841.0,0.3002]
[1746672725039,0.1434,98842.0,98841.0,0.3002]
[1746672725241,0.3114,98842.0,98841.0,0.25971]
[1746672725431,0.3114,98842.0,98841.0,0.31072206]
[1746672725939,0.513733,98842.0,98841.0,0.05101206]
[1746672726142,0.668033,98842.0,98841.0,0.002]
[1746672726339,0.2023534,98832.0,98831.0,0.00151788]
[1746672726639,0.5631534,98832.0,98831.0,0.10151788]
[1746672726834,0.66433741,98832.0,98831.0,0.00151788]
[1746672727029,0.66433741,98832.0,98810.0,0.0917244]
[1746672727030,0.2023657,98826.0,98822.0,0.02614955]
[1746672727234,0.101188,98826.0,98815.0,0.05030377]
[1746672727433,0.0505976,98814.0,98800.0,0.17085027]
[1746672727636,0.2023985,98810.0,98809.0,0.1]
[1746672728139,0.6785985,98810.0,98809.0,0.1]
[1746672728543,0.6785985,98810.0,98809.0,0.10764421]
[1746672728839,0.6785985,98810.0,98809.0,0.10864421]
[1746672729237,0.6785985,98810.0,98809.0,0.00864421]
[1746672729542,0.6785985,98810.0,98809.0,0.10864421]
[1746672731343,0.2024128,98803.0,98802.0,0.1441]
[1746672731543,0.2024128,98803.0,98802.0,0.2441]
[1746672731841,0.2024128,98803.0,98802.0,0.10768335]
[1746672732032,0.2024272,98796.0,98789.0,0.3021]
[1746672732237,0.0506122,98786.0,98785.0,0.0077403]
[1746672732436,0.2024682,98776.0,98775.0,0.1524]
[1746672732641,0.2024682,98776.0,98775.0,0.2624]
[1746672732843,0.303,98777.0,98775.0,0.2624]
[1746672733149,0.3137,98777.0,98776.0,0.4521682]
[1746672733450,0.3137,98777.0,98776.0,0.27003276]
[1746672733850,0.5161661,98777.0,98776.0,0.27776623]
[1746672735141,0.168,98777.0,98776.0,0.47623443]
[1746672735348,0.1578,98794.0,98787.0,0.2024446]
[1746672735548,0.1578,98794.0,98788.0,0.1532]
[1746672735744,0.1584,98804.0,98791.0,0.2024361]
[1746672736044,0.1578,98803.0,98794.0,0.0917244]
[1746672736249,0.2024228,98799.0,98795.0,0.11269]
[1746672736544,0.1578,98803.0,98796.0,0.1512]
[1746672736742,0.0506037,98802.0,98796.0,0.1512]
[1746672736936,0.2024224,98799.0,98796.0,0.1512]
[1746672737446,0.2024231,98798.0,98796.0,0.1512]
[1746672738548,0.2024251,98797.0,98796.0,0.1532]
[1746672738955,0.1458,98801.0,98796.0,0.1532]
[1746672739145,0.2024221,98799.0,98796.0,0.1532]
[1746672739454,0.2024221,98799.0,98796.0,0.1562]
[1746672739754,0.3608,98829.0,98800.0,0.0506043]
[1746672739954,0.1458,98812.0,98805.0,0.2024082]
[1746672740149,0.1458,98812.0,98806.0,0.2942]
[1746672740345,0.1458,98812.0,98806.0,0.31369]
[1746672740648,0.1458,98812.0,98807.0,0.1518]
[1746672740848,0.3608,98818.0,98807.0,0.4118]
[1746672741053,0.517,98818.0,98817.0,0.2023842]
[1746672741253,0.1562,98818.0,98817.0,0.2218842]
[1746672741756,0.1562,98818.0,98817.0,0.06]
[1746672742254,0.517,98818.0,98817.0,0.0195]
[1746672742455,0.517,98818.0,98817.0,0.001]
[1746672742653,0.517,98818.0,98817.0,0.2053842]
[1746672742845,0.7193821,98818.0,98817.0,0.003]
[1746672743154,0.517,98818.0,98817.0,0.2053842]
[1746672743457,0.517,98818.0,98817.0,0.2043842]
[1746672744257,0.517,98818.0,98817.0,0.1496]
[1746672744754,0.517,98818.0,98817.0,0.1486]
[1746672745141,0.1562,98818.0,98817.0,0.4709842]
[1746672745346,0.0015,98825.0,98824.0,0.2023698]
[1746672745554,0.0015,98825.0,98824.0,0.6931698]
[1746672746354,0.1518,98825.0,98824.0,0.6566698]
[1746672747854,0.1518,98825.0,98824.0,0.6526698]
[1746672748057,0.1518,98825.0,98824.0,0.6576698]
[1746672748649,0.1518,98825.0,98824.0,0.6566698]
[1746672748856,0.0015,98825.0,98824.0,0.6566698]
[1746672749248,0.0015,98825.0,98824.0,0.7841798]
[1746672749549,0.0015,98825.0,98824.0,0.7851798]
[1746672750655,0.147,98825.0,98824.0,0.7851798]
[1746672751163,0.147,98825.0,98824.0,0.7861798]
[1746672751351,0.147,98825.0,98824.0,0.6181798]
[1746672751547,0.147,98825.0,98824.0,0.6171798]
[1746672751751,0.147,98825.0,98824.0,0.6141798]
[1746672751955,0.147,98825.0,98824.0,0.6171798]
[1746672752153,0.147,98825.0,98824.0,0.6181798]
[1746672752752,0.147,98825.0,98824.0,0.6991698]
[1746672753052,0.2987,98825.0,98824.0,0.6991698]
[1746672753358,0.5010678,98825.0,98824.0,0.22428]
[1746672753556,0.5010678,98825.0,98824.0,0.136]
[1746672754361,0.4667,98825.0,98824.0,0.09251]
[1746672754664,0.4667,98825.0,98824.0,0.09451]
[1746672755053,0.4667,98825.0,98824.0,0.08951]
[1746672755260,0.4667,98825.0,98824.0,0.09251]
[1746672755460,0.4667,98825.0,98824.0,0.2948798]
[1746672755657,0.4667,98825.0,98824.0,0.2958798]
[1746672755860,0.4667,98825.0,98824.0,0.2928798]